[Event "Paul Kerese Mälestusfestival 2022 Kiirturniir"]
[Site "Pärnu, Estonia Resort Hotel & Spa"]
[Date "????.??.??"]
[Round "6.6"]
[White "Golubovskis, Maksims"]
[Black "Protassov, Vlad"]
[Result "1/2-1/2"]
[TimeControl "15 minutit partiile + 3 sek käigule"]
[WhiteTitle "FM"]
[WhiteElo "2209"]
[BlackElo "1828"]

1. e4 {[%clk 00:15:06]} c6 {[%emt 00:00:02]} 2. d4 {[%emt 00:00:01]} d5 {[%clk
00:15:04]} {[%emt 00:00:02]} 3. e5 {[%clk 00:15:10]} {[%emt 00:00:01]} Bf5
{[%clk 00:15:04]} {[%emt 00:00:03]} 4. Nf3 {[%clk 00:15:12]} {[%emt 00:00:01]}
e6 {[%clk 00:15:04]} {[%emt 00:00:03]} 5. Be2 {[%clk 00:15:14]} Nd7 {[%clk
00:15:03]} {[%emt 00:00:05]} 6. O-O {[%clk 00:15:15]} {[%emt 00:00:02]} h6
{[%clk 00:15:03]} {[%emt 00:00:03]} 7. Nbd2 {[%clk 00:15:17]} a6 {[%clk
00:14:57]} {[%emt 00:00:11]} 8. Nb3 {[%clk 00:15:20]} {[%emt 00:00:01]} c5
{[%clk 00:14:52]} {[%emt 00:00:07]} 9. c4 {[%clk 00:14:08]} {[%emt 00:01:15]}
dxc4 {[%clk 00:14:00]} {[%emt 00:00:55]} 10. Bxc4 {[%clk 00:14:09]} {[%emt
00:00:01]} b5 {[%clk 00:11:09]} {[%emt 00:02:55]} 11. Be2 {[%clk 00:14:11]} c4
{[%clk 00:10:53]} {[%emt 00:00:19]} 12. Nbd2 {[%clk 00:14:13]} Ne7 {[%clk
00:10:46]} {[%emt 00:00:09]} 13. Nh4 {[%clk 00:13:34]} {[%emt 00:00:42]} Bh7
{[%clk 00:10:34]} {[%emt 00:00:16]} 14. Bf3 {[%clk 00:12:52]} {[%emt 00:00:45]}
Rb8 {[%clk 00:09:47]} {[%emt 00:00:50]} 15. Ne4 {[%clk 00:12:35]} {[%emt
00:00:20]} Nd5 {[%clk 00:09:37]} {[%emt 00:00:13]} 16. g3 {[%clk 00:12:08]}
{[%emt 00:00:30]} Be7 {[%clk 00:09:33]} {[%emt 00:00:05]} 17. Ng2 {[%clk
00:09:58]} {[%emt 00:02:13]} O-O {[%clk 00:09:31]} {[%emt 00:00:05]} 18. Ne3
{[%clk 00:09:07]} {[%emt 00:00:53]} N7b6 {[%clk 00:09:19]} {[%emt 00:00:16]} 19.
Bg2 {[%clk 00:08:42]} {[%emt 00:00:26]} Qc7 {[%clk 00:06:29]} {[%emt 00:02:54]}
20. f4 {[%clk 00:08:08]} {[%emt 00:00:38]} b4 {[%clk 00:06:10]} {[%emt
00:00:23]} 21. g4 {[%clk 00:07:38]} {[%emt 00:00:33]} c3 {[%clk 00:05:39]}
{[%emt 00:00:34]} 22. Nxd5 {[%clk 00:07:03]} {[%emt 00:00:38]} Nxd5 {[%clk
00:05:36]} {[%emt 00:00:06]} 23. f5 {[%clk 00:06:50]} {[%emt 00:00:15]} cxb2
{[%clk 00:05:33]} {[%emt 00:00:06]} 24. Bxb2 {[%clk 00:06:53]} {[%emt
00:00:01]} Ne3 {[%clk 00:05:29]} {[%emt 00:00:06]} 25. Qf3 {[%clk 00:06:47]}
{[%emt 00:00:08]} Nxf1 {[%clk 00:05:23]} {[%emt 00:00:10]} 26. Rxf1 {[%clk
00:06:39]} {[%emt 00:00:09]} Qc2 {[%clk 00:04:13]} {[%emt 00:01:14]} 27. Rf2
{[%clk 00:06:09]} {[%emt 00:00:33]} Qb1+ {[%clk 00:04:13]} {[%emt 00:00:02]} 28.
Bf1 {[%clk 00:06:12]} {[%emt 00:00:01]} Bh4 {[%clk 00:04:02]} {[%emt 00:00:14]}
29. Re2 {[%clk 00:06:14]} {[%emt 00:00:01]} Rbc8 {[%clk 00:03:18]} {[%emt
00:00:46]} 30. Qh3 {[%clk 00:03:57]} {[%emt 00:02:20]} Rc2 {[%clk 00:02:29]}
{[%emt 00:00:53]} 31. Rxc2 {[%clk 00:02:51]} {[%emt 00:01:10]} Qxc2 {[%clk
00:02:29]} {[%emt 00:00:02]} 32. Qg2 {[%clk 00:02:51]} {[%emt 00:00:04]} Rc8
{[%clk 00:02:10]} {[%emt 00:00:22]} 33. Nc5 {[%clk 00:02:45]} {[%emt 00:00:09]}
Qxg2+ {[%clk 00:01:41]} {[%emt 00:00:33]} 34. Kxg2 {[%clk 00:02:41]} {[%emt
00:00:07]} exf5 {[%clk 00:01:19]} {[%emt 00:00:25]} 35. Bxa6 {[%clk 00:02:39]}
{[%emt 00:00:05]} Rd8 {[%clk 00:01:04]} {[%emt 00:00:18]} 36. gxf5 {[%clk
00:02:33]} {[%emt 00:00:09]} Bxf5 {[%clk 00:01:05]} {[%emt 00:00:02]} 37. Bc4
{[%clk 00:02:16]} {[%emt 00:00:19]} Be7 {[%clk 00:00:50]} {[%emt 00:00:18]} 38.
Na4 {[%clk 00:01:21]} {[%emt 00:00:59]} Be6 {[%clk 00:00:21]} {[%emt 00:00:32]}
39. Nb6 {[%emt 00:00:14]} Rb8 {[%clk 00:00:10]} {[%emt 00:00:13]} 40. Nd5
{[%clk 00:01:07]} {[%emt 00:00:07]} Bf8 {[%clk 00:00:06]} {[%emt 00:00:07]} 41.
Kf3 {[%clk 00:00:59]} {[%emt 00:00:11]} Rc8 {[%clk 00:00:07]} {[%emt 00:00:02]}
42. Bb3 {[%clk 00:00:59]} {[%emt 00:00:03]} Rd8 {[%clk 00:00:08]} {[%emt
00:00:02]} 43. Ke4 {[%clk 00:00:57]} {[%emt 00:00:05]} Rc8 {[%clk 00:00:07]}
{[%emt 00:00:03]} 44. Nb6 {[%clk 00:00:39]} {[%emt 00:00:22]} Bxb3 {[%clk
00:00:07]} {[%emt 00:00:03]} 45. Nxc8 {[%clk 00:00:40]} {[%emt 00:00:01]} Bxa2
46. d5 Bb3 {[%clk 00:00:08]} {[%emt 00:00:04]} 47. d6 {[%clk 00:00:28]} {[%emt
00:00:17]} Be6 {[%clk 00:00:09]} {[%emt 00:00:02]} 48. Nb6 {[%clk 00:00:27]}
{[%emt 00:00:04]} f6 {[%clk 00:00:10]} {[%emt 00:00:02]} 49. Nd5 {[%clk
00:00:11]} {[%emt 00:00:19]} Kf7 {[%clk 00:00:11]} {[%emt 00:00:02]} 50. Nc7
{[%clk 00:00:11]} {[%emt 00:00:03]} b3 {[%clk 00:00:10]} {[%emt 00:00:04]} 51.
Nb5 {[%clk 00:00:09]} {[%emt 00:00:05]} Ke8 {[%clk 00:00:11]} {[%emt 00:00:02]}
52. exf6 {[%clk 00:00:09]} {[%emt 00:00:03]} gxf6 {[%clk 00:00:12]} {[%emt
00:00:01]} 53. Bxf6 {[%clk 00:00:10]} {[%emt 00:00:02]} Kd7 {[%clk 00:00:10]}
{[%emt 00:00:04]} 54. Be5 {[%clk 00:00:05]} {[%emt 00:00:09]} b2 {[%clk
00:00:12]} 55. Bxb2 {[%clk 00:00:05]} {[%emt 00:00:03]} Bxd6 {[%clk 00:00:13]}
{[%emt 00:00:02]} 1/2-1/2

[Event "Paul Kerese Mälestusfestival 2022 Kiirturniir"]
[Site "Pärnu, Estonia Resort Hotel & Spa"]
[Date "????.??.??"]
[Round "6.7"]
[White "Medar, Marti"]
[Black "Heinmets, Tõnu"]
[Result "1/2-1/2"]
[TimeControl "15 minutit partiile + 3 sek käigule"]
[WhiteElo "2053"]
[BlackElo "1993"]

1. d4 {[%clk 00:15:03]} {[%emt 00:00:01]} Nf6 {[%clk 00:15:05]} {[%emt
00:00:02]} 2. Bf4 {[%clk 00:15:04]} {[%emt 00:00:01]} d6 {[%clk 00:15:07]}
{[%emt 00:00:02]} 3. Nc3 {[%clk 00:15:03]} {[%emt 00:00:04]} Nbd7 {[%clk
00:13:41]} {[%emt 00:01:28]} 4. Nf3 {[%clk 00:14:56]} {[%emt 00:00:09]} c5
{[%clk 00:13:34]} {[%emt 00:00:11]} 5. e3 {[%clk 00:14:24]} {[%emt 00:00:34]}
g6 {[%clk 00:13:34]} {[%emt 00:00:03]} 6. Be2 {[%clk 00:14:03]} {[%emt
00:00:23]} Bg7 {[%clk 00:13:36]} {[%emt 00:00:01]} 7. h3 {[%clk 00:14:05]}
{[%emt 00:00:01]} O-O {[%clk 00:13:35]} {[%emt 00:00:04]} 8. O-O {[%clk
00:14:06]} {[%emt 00:00:02]} cxd4 {[%clk 00:12:09]} {[%emt 00:01:30]} 9. exd4
{[%clk 00:14:06]} {[%emt 00:00:02]} Nb6 {[%clk 00:11:08]} {[%emt 00:01:04]} 10.
a4 {[%clk 00:13:21]} {[%emt 00:00:48]} Bf5 {[%clk 00:10:54]} {[%emt 00:00:17]}
11. a5 {[%clk 00:12:31]} {[%emt 00:00:53]} Nbd5 {[%clk 00:10:47]} {[%emt
00:00:10]} 12. Nxd5 {[%clk 00:12:06]} {[%emt 00:00:28]} Nxd5 {[%clk 00:10:48]}
{[%emt 00:00:02]} 13. Bd2 {[%clk 00:12:05]} {[%emt 00:00:03]} Rc8 {[%clk
00:10:04]} {[%emt 00:00:48]} 14. c4 {[%clk 00:11:56]} {[%emt 00:00:12]} Nf6
{[%clk 00:10:04]} {[%emt 00:00:03]} 15. Qb3 {[%clk 00:11:43]} {[%emt 00:00:16]}
Ne4 {[%clk 00:09:33]} {[%emt 00:00:34]} 16. Be3 {[%clk 00:11:31]} {[%emt
00:00:13]} b6 {[%clk 00:08:33]} {[%emt 00:01:04]} 17. axb6 {[%clk 00:11:08]}
{[%emt 00:00:26]} axb6 {[%clk 00:08:35]} {[%emt 00:00:01]} 18. Ra7 {[%clk
00:10:44]} {[%emt 00:00:26]} Rb8 {[%clk 00:07:30]} {[%emt 00:01:08]} 19. Rfa1
{[%clk 00:10:20]} {[%emt 00:00:26]} e5 {[%clk 00:07:27]} {[%emt 00:00:06]} 20.
Qb5 {[%clk 00:09:30]} {[%emt 00:00:53]} exd4 {[%clk 00:05:18]} {[%emt
00:02:13]} 21. Nxd4 {[%clk 00:09:28]} {[%emt 00:00:04]} Nc5 {[%clk 00:03:51]}
{[%emt 00:01:31]} 22. Nc6 {[%clk 00:09:01]} {[%emt 00:00:30]} Bd7 {[%clk
00:03:52]} {[%emt 00:00:02]} 23. Rd1 {[%clk 00:03:40]} {[%emt 00:05:24]} Bxc6
{[%clk 00:02:55]} {[%emt 00:01:00]} 24. Qxc6 {[%clk 00:03:41]} {[%emt
00:00:02]} Bxb2 {[%clk 00:02:54]} {[%emt 00:00:04]} 25. Rxd6 {[%clk 00:03:33]}
{[%emt 00:00:10]} Qc8 {[%clk 00:02:30]} {[%emt 00:00:27]} 26. Rc7 {[%clk
00:03:11]} {[%emt 00:00:25]} Qf5 {[%clk 00:02:29]} {[%emt 00:00:04]} 27. Rd5
{[%clk 00:02:45]} {[%emt 00:00:29]} Qb1+ {[%clk 00:02:04]} {[%emt 00:00:28]} 28.
Rd1 {[%clk 00:02:36]} {[%emt 00:00:12]} Qc2 {[%clk 00:02:05]} {[%emt 00:00:02]}
29. Rd2 {[%clk 00:02:36]} {[%emt 00:00:03]} Qb1+ {[%clk 00:02:04]} {[%emt
00:00:05]} 30. Rd1 {[%clk 00:02:37]} {[%emt 00:00:02]} Qc2 {[%clk 00:02:04]}
{[%emt 00:00:04]} 31. Rd2 {[%emt 00:01:12]} 1/2-1/2

[Event "Paul Kerese Mälestusfestival 2022 Kiirturniir"]
[Site "Pärnu, Estonia Resort Hotel & Spa"]
[Date "????.??.??"]
[Round "6.8"]
[White "Vohla, Mihkel"]
[Black "Kivioja, Endel"]
[Result "1-0"]
[TimeControl "15 minutit partiile + 3 sek käigule"]
[WhiteElo "1720"]
[BlackElo "2142"]

1. e4 {[%clk 00:15:04]} d6 {[%clk 00:15:05]} {[%emt 00:00:02]} 2. f4 {[%clk
00:15:02]} {[%emt 00:00:05]} Nf6 {[%clk 00:15:06]} {[%emt 00:00:01]} 3. Nc3
{[%clk 00:15:03]} {[%emt 00:00:03]} g6 {[%clk 00:15:04]} {[%emt 00:00:05]} 4.
Nf3 {[%clk 00:15:01]} {[%emt 00:00:05]} Bg7 {[%clk 00:15:06]} 5. d4 {[%clk
00:15:02]} {[%emt 00:00:02]} c5 {[%clk 00:15:07]} {[%emt 00:00:02]} 6. dxc5
{[%clk 00:14:57]} {[%emt 00:00:08]} Qa5 {[%clk 00:15:09]} 7. Bb5+ {[%clk
00:14:41]} {[%emt 00:00:19]} Nbd7 {[%clk 00:15:04]} {[%emt 00:00:09]} 8. O-O
{[%clk 00:14:31]} {[%emt 00:00:13]} dxc5 {[%clk 00:14:35]} {[%emt 00:00:32]} 9.
e5 {[%clk 00:14:14]} {[%emt 00:00:20]} Ng4 {[%clk 00:14:35]} {[%emt 00:00:04]}
10. h3 {[%clk 00:13:41]} {[%emt 00:00:36]} Nh6 {[%clk 00:14:37]} {[%emt
00:00:01]} 11. Be3 {[%clk 00:13:18]} {[%emt 00:00:26]} a6 {[%clk 00:14:33]}
{[%emt 00:00:07]} 12. Bd3 {[%clk 00:12:41]} {[%emt 00:00:40]} Nf5 {[%clk
00:14:14]} {[%emt 00:00:22]} 13. Bxf5 {[%clk 00:12:32]} {[%emt 00:00:12]} gxf5
{[%clk 00:14:15]} 14. Ng5 {[%clk 00:11:48]} {[%emt 00:00:47]} h6 {[%emt
00:00:19]} 15. Nxf7 {[%clk 00:10:54]} {[%emt 00:00:55]} Kxf7 {[%clk 00:14:02]}
{[%emt 00:00:02]} 16. Qh5+ {[%clk 00:10:55]} {[%emt 00:00:01]} Kg8 {[%emt
00:02:05]} 17. Nd5 {[%clk 00:09:44]} {[%emt 00:01:12]} Nf8 {[%clk 00:09:42]}
{[%emt 00:02:23]} 18. Nxe7+ {[%clk 00:09:31]} {[%emt 00:00:17]} Kh7 {[%clk
00:09:44]} 19. Nxc8 {[%clk 00:09:11]} {[%emt 00:00:23]} Rxc8 {[%clk 00:09:45]}
{[%emt 00:00:02]} 20. Qxf5+ {[%emt 00:00:02]} Ng6 21. h4 {[%clk 00:08:39]}
{[%emt 00:00:36]} Rhf8 {[%clk 00:09:31]} {[%emt 00:00:21]} 22. Qe4 {[%clk
00:08:38]} {[%emt 00:00:03]} Qb4 {[%clk 00:08:59]} {[%emt 00:00:35]} 23. c4
{[%clk 00:08:32]} {[%emt 00:00:09]} h5 {[%clk 00:09:00]} {[%emt 00:00:02]} 24.
f5 {[%clk 00:08:30]} {[%emt 00:00:05]} Nxe5 {[%clk 00:08:40]} {[%emt 00:00:22]}
25. f6+ {[%clk 00:08:30]} {[%emt 00:00:03]} Ng6 {[%clk 00:08:42]} {[%emt
00:00:02]} 26. fxg7 {[%clk 00:08:29]} {[%emt 00:00:04]} Kxg7 {[%clk 00:07:48]}
{[%emt 00:00:57]} 27. b3 {[%clk 00:07:00]} {[%emt 00:01:32]} Qc3 {[%clk
00:07:34]} {[%emt 00:00:17]} 28. Rad1 {[%clk 00:06:24]} {[%emt 00:00:39]} Rxf1+
{[%clk 00:07:06]} {[%emt 00:00:31]} 29. Rxf1 {[%clk 00:06:18]} {[%emt
00:00:09]} Rc7 {[%clk 00:06:38]} {[%emt 00:00:31]} 30. Bg5 {[%clk 00:05:05]}
{[%emt 00:01:16]} Qd4+ {[%clk 00:06:30]} {[%emt 00:00:11]} 31. Qxd4+ {[%clk
00:05:06]} {[%emt 00:00:02]} cxd4 {[%clk 00:06:32]} {[%emt 00:00:01]} 32. Bf6+
{[%clk 00:05:06]} {[%emt 00:00:03]} Kg8 {[%clk 00:06:35]} 33. Rd1 {[%clk
00:04:36]} {[%emt 00:00:33]} Rf7 {[%clk 00:06:25]} {[%emt 00:00:13]} 34. Bxd4
{[%clk 00:04:03]} {[%emt 00:00:35]} Nxh4 {[%clk 00:06:27]} {[%emt 00:00:01]} 35.
Re1 {[%clk 00:03:51]} {[%emt 00:00:14]} Nf5 {[%clk 00:05:56]} {[%emt 00:00:35]}
36. Bc3 {[%clk 00:03:42]} {[%emt 00:00:12]} Kh7 {[%clk 00:05:37]} {[%emt
00:00:22]} 37. Re6 {[%clk 00:03:39]} {[%emt 00:00:07]} h4 {[%clk 00:05:00]}
{[%emt 00:00:40]} 38. Kh2 {[%clk 00:03:26]} {[%emt 00:00:16]} Rd7 {[%clk
00:04:50]} {[%emt 00:00:12]} 39. Rf6 {[%clk 00:03:12]} {[%emt 00:00:17]} Nh6
{[%clk 00:04:40]} {[%emt 00:00:13]} 40. Rb6 {[%clk 00:03:06]} {[%emt 00:00:09]}
Nf5 {[%clk 00:04:05]} {[%emt 00:00:38]} 41. Be1 {[%clk 00:03:02]} {[%emt
00:00:06]} Rd1 {[%clk 00:04:06]} {[%emt 00:00:02]} 42. Rxb7+ {[%clk 00:02:56]}
{[%emt 00:00:10]} Kg6 {[%clk 00:04:08]} 43. Ba5 {[%clk 00:02:38]} {[%emt
00:00:21]} Ng3 {[%clk 00:03:58]} {[%emt 00:00:13]} 44. Kh3 {[%clk 00:02:21]}
{[%emt 00:00:20]} Nf5 {[%clk 00:03:08]} {[%emt 00:00:53]} 45. Kg4 {[%clk
00:02:03]} {[%emt 00:00:20]} Rd4+ {[%clk 00:02:02]} {[%emt 00:01:09]} 46. Kf3
{[%clk 00:02:05]} Rd3+ {[%clk 00:02:04]} {[%emt 00:00:02]} 47. Ke2 {[%clk
00:02:01]} {[%emt 00:00:07]} Rg3 {[%clk 00:02:00]} {[%emt 00:00:06]} 48. Rb6+
{[%clk 00:01:59]} {[%emt 00:00:05]} Kh5 {[%clk 00:02:02]} 49. Kf2 {[%clk
00:01:56]} {[%emt 00:00:06]} Ne3 {[%clk 00:01:43]} {[%emt 00:00:21]} 50. Bd2
{[%clk 00:01:47]} {[%emt 00:00:12]} Ng4+ {[%clk 00:01:45]} {[%emt 00:00:02]} 51.
Kf1 {[%clk 00:01:44]} {[%emt 00:00:06]} Nh2+ {[%clk 00:01:39]} {[%emt
00:00:09]} 52. Ke1 {[%clk 00:01:35]} {[%emt 00:00:11]} Rxg2 {[%clk 00:01:39]}
{[%emt 00:00:03]} 53. Rh6+ {[%clk 00:01:36]} {[%emt 00:00:02]} Kg4 {[%clk
00:01:36]} {[%emt 00:00:05]} 54. Rg6+ {[%clk 00:01:25]} {[%emt 00:00:15]} Kf3
{[%clk 00:01:38]} 55. Rxg2 {[%clk 00:01:26]} {[%emt 00:00:02]} Kxg2 {[%clk
00:01:40]} {[%emt 00:00:01]} 56. Bf4 {[%clk 00:01:18]} {[%emt 00:00:11]} Nf1
{[%clk 00:01:25]} {[%emt 00:00:18]} 57. c5 {[%clk 00:01:18]} {[%emt 00:00:04]}
h3 {[%clk 00:01:27]} 58. c6 {[%clk 00:01:19]} {[%emt 00:00:02]} Ng3 {[%clk
00:01:28]} {[%emt 00:00:01]} 59. Bxg3 {[%clk 00:01:15]} {[%emt 00:00:07]} Kxg3
{[%clk 00:01:31]} 60. c7 {[%clk 00:01:17]} h2 {[%clk 00:01:32]} {[%emt
00:00:01]} 61. c8=Q {[%clk 00:01:15]} {[%emt 00:00:05]} h1=Q+ {[%clk 00:01:34]}
{[%emt 00:00:01]} 62. Kd2 {[%clk 00:01:17]} {[%emt 00:00:01]} Qg2+ {[%clk
00:01:28]} {[%emt 00:00:09]} 63. Kc3 {[%clk 00:01:17]} {[%emt 00:00:03]} Qxa2
{[%clk 00:01:29]} {[%emt 00:00:03]} 64. Kb4 {[%emt 00:00:11]} Kf4 {[%clk
00:01:02]} {[%emt 00:00:28]} 65. Qc4 {[%clk 00:01:07]} {[%emt 00:00:06]} Ke5
{[%clk 00:01:02]} {[%emt 00:00:03]} 66. Kc5 {[%clk 00:01:08]} {[%emt 00:00:03]}
a5 {[%clk 00:00:13]} {[%emt 00:00:52]} 67. Kb5 {[%clk 00:01:00]} {[%emt
00:00:11]} Kd6 {[%clk 00:00:14]} {[%emt 00:00:02]} 68. Kb6 {[%clk 00:00:54]}
{[%emt 00:00:10]} Kd7 {[%clk 00:00:14]} {[%emt 00:00:03]} 69. Qc6+ {[%clk
00:00:51]} {[%emt 00:00:06]} Kd8 {[%clk 00:00:16]} 70. Qb5 {[%clk 00:00:51]}
{[%emt 00:00:02]} Qf2+ {[%clk 00:00:08]} {[%emt 00:00:12]} 71. Kxa5 {[%clk
00:00:49]} {[%emt 00:00:05]} Qd2+ {[%clk 00:00:10]} 72. Ka6 {[%clk 00:00:47]}
{[%emt 00:00:05]} Qa2+ {[%clk 00:00:10]} {[%emt 00:00:01]} 73. Kb7 {[%clk
00:00:46]} {[%emt 00:00:05]} Qg2+ {[%clk 00:00:12]} {[%emt 00:00:01]} 74. Kb6
{[%clk 00:00:38]} {[%emt 00:00:11]} Qf2+ {[%clk 00:00:13]} {[%emt 00:00:01]} 75.
Kb7 {[%clk 00:00:31]} {[%emt 00:00:11]} Qf3+ {[%clk 00:00:15]} {[%emt
00:00:02]} 76. Ka7 {[%clk 00:00:32]} {[%emt 00:00:02]} Qf7+ {[%clk 00:00:13]}
{[%emt 00:00:04]} 77. Ka6 {[%clk 00:00:29]} {[%emt 00:00:06]} Qf4 {[%emt
00:00:07]} 78. b4 {[%clk 00:00:28]} {[%emt 00:00:04]} Qh2 {[%clk 00:15:03]}
{[%emt 00:00:10]} 1-0

[Event "Paul Kerese Mälestusfestival 2022 Kiirturniir"]
[Site "Pärnu, Estonia Resort Hotel & Spa"]
[Date "????.??.??"]
[Round "7.2"]
[White "Maiorov, Nikita"]
[Black "Kantans, Toms"]
[Result "0-1"]
[TimeControl "15 minutit partiile + 3 sek käigule"]
[WhiteTitle "GM"]
[BlackTitle "GM"]
[WhiteElo "2431"]
[BlackElo "2422"]

1. d4 {[%clk 00:15:05]} {[%emt 00:04:46]} Nf6 {[%clk 00:15:05]} {[%emt
00:00:02]} 2. c4 {[%clk 00:15:07]} {[%emt 00:00:01]} e6 {[%clk 00:14:58]}
{[%emt 00:00:10]} 3. Nc3 {[%clk 00:15:00]} {[%emt 00:00:10]} Bb4 {[%clk
00:15:00]} {[%emt 00:00:01]} 4. Qc2 {[%clk 00:15:01]} {[%emt 00:00:01]} c5
{[%clk 00:14:50]} {[%emt 00:00:13]} 5. dxc5 {[%clk 00:15:02]} {[%emt 00:00:02]}
Na6 {[%clk 00:14:53]} 6. a3 {[%clk 00:14:59]} {[%emt 00:00:06]} Bxc3+ {[%clk
00:14:40]} {[%emt 00:00:15]} 7. Qxc3 {[%clk 00:14:55]} {[%emt 00:00:07]} Nxc5
{[%clk 00:14:41]} {[%emt 00:00:03]} 8. f3 {[%clk 00:14:57]} {[%emt 00:00:01]}
d6 {[%clk 00:13:12]} {[%emt 00:01:33]} 9. e4 {[%clk 00:14:56]} {[%emt
00:00:03]} O-O {[%clk 00:13:04]} {[%emt 00:00:11]} 10. Be3 {[%clk 00:14:57]}
{[%emt 00:00:02]} Qc7 {[%clk 00:13:01]} {[%emt 00:00:07]} 11. Nh3 {[%clk
00:14:13]} {[%emt 00:00:46]} e5 {[%clk 00:13:03]} {[%emt 00:00:01]} 12. Nf2
{[%clk 00:14:15]} {[%emt 00:00:01]} a5 {[%clk 00:13:03]} {[%emt 00:00:05]} 13.
Be2 {[%clk 00:13:27]} {[%emt 00:00:50]} Be6 {[%clk 00:13:04]} {[%emt 00:00:02]}
14. O-O {[%clk 00:13:26]} {[%emt 00:00:04]} Rfc8 {[%clk 00:12:46]} {[%emt
00:00:21]} 15. Rac1 {[%clk 00:12:29]} {[%emt 00:00:59]} a4 {[%clk 00:12:30]}
{[%emt 00:00:20]} 16. Rc2 {[%clk 00:12:20]} {[%emt 00:00:11]} Ra6 {[%clk
00:10:19]} {[%emt 00:02:15]} 17. Rd1 {[%clk 00:12:03]} {[%emt 00:00:19]} Nfd7
{[%clk 00:08:48]} {[%emt 00:01:34]} 18. Bf1 {[%clk 00:09:20]} {[%emt 00:02:45]}
Rc6 {[%clk 00:08:06]} {[%emt 00:00:47]} 19. Qb4 {[%clk 00:09:00]} {[%emt
00:00:22]} Ra8 {[%clk 00:07:38]} {[%emt 00:00:31]} 20. Qe1 {[%clk 00:07:16]}
{[%emt 00:01:47]} Nb3 {[%clk 00:06:56]} {[%emt 00:00:46]} 21. Qb4 {[%clk
00:06:44]} {[%emt 00:00:34]} Nb6 {[%clk 00:06:35]} {[%emt 00:00:24]} 22. h4
{[%clk 00:02:36]} {[%emt 00:04:11]} h5 {[%clk 00:06:04]} {[%emt 00:00:34]} 23.
Qe1 {[%clk 00:02:14]} {[%emt 00:00:25]} Nxc4 {[%clk 00:05:47]} {[%emt
00:00:20]} 24. Bxc4 {[%clk 00:02:16]} {[%emt 00:00:01]} Bxc4 {[%clk 00:05:23]}
{[%emt 00:00:27]} 25. g4 {[%clk 00:02:16]} {[%emt 00:00:03]} Rd8 {[%clk
00:04:39]} {[%emt 00:00:47]} 26. gxh5 {[%clk 00:02:16]} {[%emt 00:00:03]} d5
{[%clk 00:04:42]} 27. Ng4 {[%clk 00:01:49]} {[%emt 00:00:29]} d4 {[%clk
00:04:04]} {[%emt 00:00:40]} 28. Bg5 {[%clk 00:01:41]} {[%emt 00:00:10]} f6
{[%clk 00:04:07]} {[%emt 00:00:01]} 29. Bc1 {[%clk 00:01:43]} {[%emt 00:00:02]}
Be6 {[%clk 00:02:02]} {[%emt 00:02:07]} 30. Nxf6+ {[%clk 00:01:22]} {[%emt
00:00:24]} gxf6 {[%clk 00:01:42]} {[%emt 00:00:23]} 31. Rg2+ {[%clk 00:01:24]}
Kf8 {[%clk 00:01:12]} {[%emt 00:00:33]} 32. Bh6+ {[%clk 00:01:23]} {[%emt
00:00:03]} Ke7 {[%clk 00:01:13]} {[%emt 00:00:02]} 33. Rg7+ {[%clk 00:01:10]}
{[%emt 00:00:16]} Bf7 {[%clk 00:01:15]} 34. Qg3 {[%clk 00:00:58]} {[%emt
00:00:16]} Kd6 {[%clk 00:00:52]} {[%emt 00:00:26]} 35. f4 {[%clk 00:00:33]}
{[%emt 00:00:27]} Kc5 {[%clk 00:00:34]} {[%emt 00:00:21]} 36. fxe5 {[%clk
00:00:33]} {[%emt 00:00:03]} fxe5 {[%clk 00:00:37]} 37. Rf1 {[%clk 00:00:25]}
{[%emt 00:00:11]} Rd7 {[%clk 00:00:38]} {[%emt 00:00:02]} 38. Rf5 {[%clk
00:00:17]} {[%emt 00:00:11]} Rxh6 {[%clk 00:00:26]} {[%emt 00:00:16]} 39. Qe1
{[%clk 00:00:11]} {[%emt 00:00:09]} b5 {[%clk 00:00:16]} {[%emt 00:00:13]} 40.
Rgg5 {[%clk 00:00:08]} {[%emt 00:00:06]} Kb6 {[%clk 00:00:15]} {[%emt
00:00:04]} 41. Qb4 {[%clk 00:00:08]} {[%emt 00:00:02]} Qc1+ {[%clk 00:00:14]}
{[%emt 00:00:04]} 42. Kg2 {[%clk 00:00:07]} {[%emt 00:00:03]} Bc4 {[%clk
00:00:10]} {[%emt 00:00:08]} 43. Rf2 {[%clk 00:00:07]} {[%emt 00:00:03]} Rhd6
{[%clk 00:00:09]} {[%emt 00:00:05]} 44. Rg6 {[%clk 00:00:08]} {[%emt 00:00:02]}
Rxg6+ {[%clk 00:00:08]} {[%emt 00:00:04]} 45. hxg6 {[%clk 00:00:10]} Qe3 {[%clk
00:00:09]} {[%emt 00:00:02]} 46. Rf6+ {[%clk 00:00:08]} {[%emt 00:00:05]} Kb7
{[%clk 00:00:11]} {[%emt 00:00:02]} 47. Qf8 {[%clk 00:00:09]} {[%emt 00:00:02]}
Qxe4+ {[%clk 00:00:12]} {[%emt 00:00:02]} 48. Kg3 {[%clk 00:00:09]} {[%emt
00:00:02]} Bd5 {[%clk 00:00:09]} {[%emt 00:00:05]} 49. h5 {[%clk 00:00:10]}
{[%emt 00:00:02]} Nd2 {[%clk 00:00:09]} {[%emt 00:00:04]} 50. g7 {[%clk
00:00:11]} {[%emt 00:00:02]} Qg2+ {[%clk 00:00:09]} {[%emt 00:00:03]} 51. Kh4
{[%clk 00:00:13]} {[%emt 00:00:01]} Qh2+ {[%clk 00:00:09]} {[%emt 00:00:03]} 52.
Kg5 {[%clk 00:00:14]} {[%emt 00:00:01]} Ne4+ {[%clk 00:00:11]} {[%emt
00:00:01]} 53. Kh6 {[%clk 00:00:16]} {[%emt 00:00:01]} Nxf6 {[%clk 00:00:12]}
{[%emt 00:00:02]} 54. Qxf6 {[%clk 00:00:18]} Qf4+ {[%clk 00:00:13]} {[%emt
00:00:03]} 55. Qxf4 {[%clk 00:00:19]} {[%emt 00:00:01]} exf4 {[%clk 00:00:15]}
56. Kg6 {[%clk 00:00:20]} {[%emt 00:00:02]} f3 {[%clk 00:00:13]} {[%emt
00:00:05]} 57. h6 {[%clk 00:00:22]} {[%emt 00:00:01]} Bg8 {[%clk 00:00:15]} 0-1